bitfinex-derivatives/quotes_BTCF0:USTF0_20250803
["timestamp","ask_amount","ask_price","bid_price","bid_amount"]
[1754257575348,1.30957625,114450.0,114440.0,0.43019]
[1754257575945,1.30957625,114450.0,114440.0,0.3628]
[1754257577250,1.30957625,114450.0,114440.0,0.38214]
[1754257577445,1.30957625,114450.0,114440.0,0.3628]
[1754257578248,1.30957625,114450.0,114440.0,0.38214]
[1754257578851,1.30957625,114450.0,114440.0,0.3628]
[1754257581447,0.7031047,114450.0,114440.0,0.3628]
[1754257581649,1.30957625,114450.0,114440.0,0.3628]
[1754257582657,1.30957625,114450.0,114440.0,0.43019]
[1754257583258,1.30957625,114450.0,114440.0,0.40031]
[1754257583460,1.3310555,114450.0,114440.0,0.40031]
[1754257583752,1.3310555,114450.0,114440.0,0.43019]
[1754257583958,1.3310555,114450.0,114440.0,0.3628]
[1754257593560,1.30957625,114450.0,114440.0,0.3628]
[1754257611184,1.30957625,114450.0,114440.0,0.42815]
[1754257611383,1.30957625,114450.0,114440.0,0.50458]
[1754257611581,1.30957625,114450.0,114440.0,0.47407]
[1754257611784,1.30957625,114450.0,114440.0,0.42815]
[1754257615788,1.30957625,114450.0,114440.0,0.50458]
[1754257616084,1.30957625,114450.0,114440.0,0.53176]
[1754257616285,1.30957625,114450.0,114440.0,0.47407]
[1754257617288,1.30957625,114450.0,114440.0,0.42815]
[1754257627408,0.7031047,114450.0,114440.0,0.42815]
[1754257627706,1.30957625,114450.0,114440.0,0.42815]
[1754257631909,0.7031047,114450.0,114440.0,0.42815]
[1754257632109,1.30957625,114450.0,114440.0,0.39946]
[1754257632310,1.30957625,114450.0,114440.0,0.3628]
[1754257633610,1.33108556,114450.0,114440.0,0.3628]
[1754257634114,0.72461401,114450.0,114440.0,0.3628]
[1754257634316,1.33108556,114450.0,114440.0,0.3628]
[1754257634616,1.30957625,114450.0,114440.0,0.3628]
[1754257635415,1.30957625,114450.0,114440.0,0.62724]
[1754257635804,1.30957625,114450.0,114440.0,0.3628]
[1754257636916,1.30957625,114450.0,114440.0,0.42781]
[1754257642223,1.33108561,114450.0,114440.0,0.42781]
[1754257643424,1.30957625,114450.0,114440.0,0.42781]
[1754257647222,1.30957625,114450.0,114440.0,0.3628]
[1754257651128,1.30957625,114450.0,114440.0,0.39842]
[1754257651629,1.30957625,114450.0,114440.0,0.42781]
[1754257653332,1.30957625,114450.0,114440.0,0.47351]
[1754257653531,1.30957625,114450.0,114440.0,0.42781]
[1754257660538,1.30957625,114450.0,114440.0,0.47351]
[1754257660939,1.30957625,114450.0,114440.0,0.42781]
[1754257667943,1.30957625,114450.0,114440.0,0.06701]
[1754257668246,1.30957625,114450.0,114440.0,0.42781]
[1754257670049,1.30957625,114450.0,114440.0,0.49823]
[1754257670259,1.30957625,114450.0,114440.0,0.46981]
[1754257670956,1.30957625,114450.0,114440.0,0.10901]
[1754257671258,1.30957625,114450.0,114440.0,0.46981]
[1754257673058,1.30957625,114450.0,114440.0,0.42781]
[1754257673558,1.33108346,114450.0,114440.0,0.42781]
[1754257676758,1.30957625,114450.0,114440.0,0.42781]
[1754257677160,1.33108345,114450.0,114440.0,0.42781]
[1754257677360,1.30957625,114450.0,114440.0,0.42781]
[1754257677554,1.33108346,114450.0,114440.0,0.42781]
[1754257679663,1.30957625,114450.0,114440.0,0.42781]
[1754257679864,1.33108345,114450.0,114440.0,0.42781]
[1754257683464,1.30957625,114450.0,114440.0,0.42781]
[1754257684066,1.30957625,114450.0,114440.0,0.46981]
[1754257684967,1.30957625,114450.0,114440.0,0.10901]
[1754257685266,1.30957625,114450.0,114440.0,0.46981]
[1754257686059,1.30957625,114450.0,114440.0,0.42781]
[1754257695876,1.30957625,114450.0,114440.0,0.46792]
[1754257698183,0.5245747,114450.0,114440.0,1.12705155]
[1754257698380,0.4247849,114450.0,114440.0,2.4438442]
[1754257699376,0.4247849,114450.0,114440.0,1.91597573]
[1754257699873,0.4247849,114450.0,114440.0,2.52244728]
[1754257700677,0.4247849,114450.0,114440.0,2.34768728]
[1754257700878,0.4247849,114450.0,114440.0,2.52244728]
[1754257703586,0.4247849,114450.0,114440.0,2.4438442]
[1754257703782,0.4247849,114450.0,114440.0,2.52244728]
[1754257705588,0.4247849,114450.0,114440.0,2.4438442]
[1754257707785,0.4247849,114450.0,114440.0,2.52244728]
[1754257707988,0.4247849,114450.0,114440.0,1.80084728]
[1754257708181,0.4247849,114450.0,114440.0,2.52244728]
[1754257709582,0.4247849,114450.0,114440.0,2.34768728]
[1754257711690,0.25004,114450.0,114440.0,2.34768728]
[1754257711891,0.25004,114450.0,114440.0,2.2690842]
[1754257713082,0.4247859,114450.0,114440.0,2.2690842]
[1754257713984,0.25004,114450.0,114440.0,2.2690842]
[1754257715095,0.25004,114450.0,114440.0,2.34768728]
[1754257716296,0.25004,114450.0,114440.0,2.61488728]
[1754257717697,0.25004,114450.0,114440.0,2.78964728]
[1754257721704,0.4247859,114450.0,114440.0,2.61488728]
[1754257721901,1.18727745,114450.0,114440.0,1.85063573]
[1754257722106,1.18727745,114450.0,114440.0,1.94015463]
[1754257722308,1.18727745,114450.0,114440.0,1.59435155]
[1754257723205,1.18727745,114450.0,114440.0,1.33007155]
[1754257723405,1.18727745,114450.0,114440.0,1.59435155]
[1754257725410,1.18727745,114450.0,114440.0,1.76911265]
[1754257725610,0.5808059,114450.0,114440.0,1.76911265]
[1754257727511,0.5808059,114450.0,114440.0,1.59435155]
[1754257727811,0.5808059,114450.0,114440.0,0.96927155]
[1754257728013,0.5808059,114450.0,114440.0,1.23355155]
[1754257728907,0.5808059,114450.0,114440.0,1.26927155]
[1754257729508,0.5808059,114450.0,114440.0,1.29786155]
[1754257731216,0.5808059,114450.0,114440.0,1.03358155]
[1754257731411,0.5808059,114450.0,114440.0,1.29786155]
[1754257732815,1.18727745,114450.0,114440.0,1.33949155]
[1754257733114,0.5808059,114450.0,114440.0,1.33949155]
[1754257734014,0.5808059,114450.0,114440.0,1.36696155]
[1754257734412,0.5808059,114450.0,114440.0,1.39147155]
[1754257736410,0.5808059,114450.0,114440.0,0.785]
[1754257736617,0.5808059,114450.0,114440.0,1.39147155]
[1754257739419,1.18727745,114450.0,114440.0,1.29786155]
[1754257739613,0.5808059,114450.0,114440.0,1.33949155]
[1754257739810,1.18727745,114450.0,114440.0,1.33949155]
[1754257740218,1.18727745,114450.0,114440.0,1.36696155]
[1754257740422,1.18727745,114450.0,114440.0,1.39147155]
[1754257744116,1.18727745,114450.0,114440.0,1.32716155]
[1754257744319,0.4867459,114450.0,114440.0,1.32716155]
[1754257744715,0.5808059,114450.0,114440.0,1.32716155]
[1754257745422,1.18727745,114450.0,114440.0,1.32716155]
[1754257746723,0.5808059,114450.0,114440.0,1.39147155]
[1754257748625,1.18727745,114450.0,114440.0,1.39147155]
[1754257750423,0.5808059,114450.0,114440.0,1.39147155]
[1754257751826,1.18727745,114450.0,114440.0,1.39147155]
[1754257762432,1.18727745,114450.0,114440.0,0.785]
[1754257762635,1.18727745,114450.0,114440.0,1.39147155]
[1754257764436,1.18727745,114450.0,114440.0,0.785]
[1754257764637,1.18727745,114450.0,114440.0,1.39147155]
[1754257765635,1.18727745,114450.0,114440.0,1.03067155]
[1754257765837,1.18727745,114450.0,114440.0,1.39147155]
[1754257766538,1.09321745,114450.0,114440.0,1.39147155]
[1754257766741,1.03125745,114450.0,114440.0,1.39147155]
[1754257767041,0.4247859,114450.0,114440.0,1.39147155]
[1754257767646,0.4247859,114450.0,114440.0,0.785]
[1754257767835,0.4247859,114450.0,114440.0,1.39147155]
[1754257768940,0.4422059,114450.0,114440.0,1.39147155]
[1754257769141,0.4589359,114450.0,114440.0,1.39147155]
[1754257769341,0.4247859,114450.0,114440.0,1.39147155]
[1754257774639,0.4347859,114450.0,114440.0,1.39147155]
[1754257779151,0.5893959,114450.0,114440.0,1.39147155]
[1754257779452,0.5620159,114450.0,114440.0,1.39147155]
[1754257779747,0.4969259,114450.0,114440.0,1.39147155]
[1754257780154,0.4347859,114450.0,114440.0,1.39147155]
[1754257782256,1.04125745,114450.0,114440.0,1.39147155]
[1754257782555,1.10324745,114450.0,114440.0,1.39147155]
[1754257785255,1.13010745,114450.0,114440.0,1.39147155]
[1754257786757,0.4347859,114450.0,114440.0,1.39147155]
[1754257792764,0.4940359,114450.0,114440.0,1.39147155]
[1754257792952,0.5175059,114450.0,114440.0,1.39147155]
[1754257793156,1.18935745,114450.0,114440.0,1.39147155]
[1754257799662,0.5828859,114450.0,114440.0,1.39147155]
[1754257804870,0.5828859,114450.0,114440.0,0.785]
[1754257805071,0.5828859,114450.0,114440.0,1.39147155]
[1754257805276,1.18935745,114450.0,114440.0,1.39147155]
[1754257808175,0.5828859,114450.0,114440.0,1.39147155]
[1754257808374,1.18935745,114450.0,114440.0,1.39147155]
[1754257808880,1.18935745,114450.0,114440.0,1.03067155]
[1754257809080,1.18935745,114450.0,114440.0,1.39147155]
[1754257810784,1.18935745,114450.0,114440.0,1.03067155]
[1754257810980,1.18935745,114450.0,114440.0,1.39147155]
[1754257812482,1.16249745,114450.0,114440.0,1.39147155]
[1754257813082,1.18868745,114450.0,114440.0,1.39147155]
[1754257814278,1.16249745,114450.0,114440.0,1.39147155]
[1754257814682,1.19220745,114450.0,114440.0,0.45162]
[1754257814876,1.19220745,114450.0,114440.0,0.49133]
[1754257815183,1.19220745,114450.0,114440.0,1.12252155]
[1754257816785,1.19220745,114450.0,114440.0,0.76172155]
[1754257816987,1.19220745,114450.0,114440.0,1.12252155]
[1754257823391,1.19220745,114450.0,114440.0,0.51605]
[1754257823694,1.19220745,114450.0,114440.0,1.12252155]
[1754257824089,1.19220745,114450.0,114440.0,0.76172155]
[1754257824293,1.19220745,114450.0,114440.0,1.12252155]
[1754257833997,1.19220745,114450.0,114440.0,1.03358155]
[1754257834200,1.19220745,114450.0,114440.0,1.07329155]
[1754257834401,1.19220745,114450.0,114440.0,1.12252155]
[1754257838602,0.5857359,114450.0,114440.0,1.12252155]
[1754257838901,1.19220745,114450.0,114440.0,1.12252155]
[1754257839304,1.19220745,114450.0,114440.0,0.96927155]
[1754257840303,1.19220745,114450.0,114440.0,0.98624155]
[1754257840504,1.19220745,114450.0,114440.0,1.03007155]
[1754257840700,1.19220745,114450.0,114440.0,1.06733155]
[1754257841607,1.19220745,114450.0,114440.0,1.11536155]
[1754257851414,1.19220745,114450.0,114440.0,0.50889]
[1754257851810,1.19220745,114450.0,114440.0,1.11536155]
[1754257861819,1.19220745,114450.0,114440.0,0.50889]
[1754257862019,1.19220745,114450.0,114440.0,1.11536155]
[1754257862322,0.5857359,114450.0,114440.0,1.11536155]
[1754257862524,1.19220745,114450.0,114440.0,1.11536155]
[1754257867618,1.19220745,114450.0,114440.0,0.75456155]
[1754257867923,1.19220745,114450.0,114440.0,1.11536155]
[1754257869627,1.19220745,114450.0,114440.0,0.75456155]
[1754257869828,1.19220745,114450.0,114440.0,1.11536155]
[1754257878233,1.19220745,114450.0,114440.0,0.50889]
[1754257878429,1.19220745,114450.0,114440.0,1.11536155]
[1754257885238,1.19220745,114450.0,114440.0,0.50889]
[1754257885938,1.19220745,114450.0,114440.0,1.11536155]
[1754257892350,1.19220745,114450.0,114440.0,0.50889]
[1754257892646,1.19220745,114450.0,114440.0,1.11536155]
[1754257899043,1.19220745,114450.0,114440.0,0.14809]
[1754257899245,1.19220745,114450.0,114440.0,1.11536155]
[1754257903758,1.19220745,114450.0,114440.0,0.75456155]
[1754257903962,1.19220745,114450.0,114440.0,1.11536155]
[1754257905554,0.4347859,114450.0,114440.0,1.11536155]
[1754257906761,1.04125745,114450.0,114440.0,1.11536155]
[1754257906961,0.4347859,114450.0,114440.0,1.11536155]
[1754257921173,0.4658659,114450.0,114440.0,1.11536155]
[1754257926474,0.5769059,114450.0,114440.0,1.11536155]
[1754257926974,0.5531659,114450.0,114440.0,1.11536155]
[1754257927175,0.5146359,114450.0,114440.0,1.11536155]
[1754257927575,0.4908259,114450.0,114440.0,1.11536155]
[1754257927976,0.5146359,114450.0,114440.0,1.11536155]
[1754257928369,0.5531659,114450.0,114440.0,1.11536155]
[1754257928570,0.4908259,114450.0,114440.0,1.11536155]
[1754257929076,0.5769059,114450.0,114440.0,1.11536155]
[1754257929376,0.4347859,114450.0,114440.0,1.11536155]
[1754257929567,0.4347859,114450.0,114440.0,1.29011425]
[1754257929767,0.4347859,114450.0,114440.0,1.36871733]
[1754257929964,0.4347859,114450.0,114440.0,1.29011425]
[1754257930274,0.4347859,114450.0,114440.0,1.36871733]
[1754257934081,0.4347859,114450.0,114440.0,1.72951733]
[1754257934580,0.4347859,114450.0,114440.0,2.2573858]
[1754257935080,0.4347859,114450.0,114440.0,1.65091425]
[1754257937881,0.4347859,114450.0,114440.0,2.2573858]
[1754257938784,0.4347859,114450.0,114440.0,2.33598888]
[1754257941085,0.4347859,114450.0,114440.0,1.72951733]
[1754257943782,0.4347859,114450.0,114440.0,1.74743603]
[1754257943979,0.4347859,114450.0,114440.0,2.35390758]
[1754257944982,0.26004,114450.0,114440.0,2.35390758]
[1754257945184,0.26004,114450.0,114440.0,2.2753045]
[1754257946188,0.26004,114450.0,114440.0,2.35390758]
[1754257950393,0.09808,114450.0,114440.0,2.4500645]
[1754257950886,0.09808,114450.0,114440.0,2.90584407]
[1754257951287,0.09808,114450.0,114440.0,2.79579195]
[1754257953792,0.09808,114450.0,114440.0,2.7172645]
[1754257955995,0.09808,114450.0,114440.0,2.79579195]
[1754257956388,0.0228,114470.0,114460.0,0.1747221]
[1754257956695,0.2228,114470.0,114460.0,2.3729452]
[1754257957689,0.2238,114470.0,114460.0,2.3729452]
[1754257958497,0.2268,114470.0,114460.0,2.3729452]
[1754257959094,0.2268,114470.0,114460.0,1.76647365]
[1754257959601,0.204,114470.0,114460.0,1.76647365]
[1754257960193,0.204,114470.0,114460.0,2.3729452]
[1754257960402,0.2268,114470.0,114460.0,2.3729452]
[1754257960801,0.2268,114470.0,114460.0,2.3759252]
[1754257961100,0.2268,114470.0,114460.0,2.38455525]
[1754257962901,0.24297,114470.0,114460.0,2.38455525]
[1754257963503,0.2268,114470.0,114460.0,1.7780837]
[1754257963709,0.34678,114470.0,114460.0,1.7780837]
[1754257967315,0.34682,114470.0,114460.0,1.7780837]
[1754257969816,0.34682,114470.0,114460.0,1.79588808]
[1754257973618,0.34682,114470.0,114460.0,1.87441553]
[1754257976224,0.3234,114470.0,114460.0,1.87441553]
[1754257977520,0.2858,114470.0,114460.0,1.87441553]
[1754257979923,0.2858,114470.0,114460.0,1.79588808]
[1754257981129,0.20404,114470.0,114460.0,1.79588808]
[1754257981522,0.20404,114470.0,114460.0,2.40235963]
[1754257984124,4e-05,114480.0,114470.0,0.1803269]
[1754257984320,0.23004,114480.0,114470.0,1.83260742]
[1754257984522,0.279398,114500.0,114490.0,0.1781364]
[1754257984523,0.337528,114500.0,114490.0,0.1781364]
[1754257984723,0.587528,114500.0,114490.0,1.77188795]
[1754257985124,0.610948,114500.0,114490.0,1.77188795]
[1754257986526,0.616948,114500.0,114490.0,1.77188795]
[1754257987233,0.616948,114500.0,114490.0,1.8401179]
[1754257988434,0.5732827,114500.0,114490.0,1.8401179]
[1754257988734,0.4533027,114500.0,114490.0,1.8401179]
[1754257989234,0.27863,114500.0,114490.0,1.8401179]
[1754257989432,0.31128,114500.0,114490.0,1.8401179]
[1754257989634,0.30928,114500.0,114490.0,1.8401179]
[1754257990837,0.27663,114500.0,114490.0,1.8408879]
[1754257999836,0.4512912,114500.0,114490.0,1.8408879]
[1754258003949,0.4847112,114500.0,114490.0,1.91942532]
[1754258004448,0.31005,114500.0,114490.0,1.91942532]
[1754258004650,0.31005,114500.0,114490.0,1.8408879]
[1754258004942,0.4847112,114500.0,114490.0,1.8408879]
[1754258006442,0.4512912,114500.0,114490.0,1.8408879]
[1754258007046,0.25404,114500.0,114490.0,2.44735945]
[1754258007233,0.27787,114500.0,114490.0,2.44735945]
[1754258008351,0.27787,114500.0,114490.0,2.52589687]
[1754258009647,0.27787,114500.0,114490.0,1.80429687]
[1754258009834,0.27787,114500.0,114490.0,2.52589687]
[1754258014948,0.27787,114500.0,114490.0,1.80429687]
[1754258015147,0.27787,114500.0,114490.0,2.79309687]
[1754258015543,0.27787,114500.0,114490.0,2.71455945]
[1754258015846,0.27787,114500.0,114490.0,1.99295945]
[1754258016049,0.27787,114500.0,114490.0,2.71455945]
[1754258019454,0.29434,114500.0,114490.0,2.71455945]
[1754258024454,0.27787,114500.0,114490.0,2.71455945]
[1754258036756,0.27787,114500.0,114490.0,2.82461157]
[1754258040267,0.25404,114500.0,114490.0,2.82461157]
[1754258040973,0.27811,114500.0,114490.0,2.82461157]
[1754258043675,0.27811,114500.0,114490.0,2.71455945]
[1754258045169,0.27811,114500.0,114490.0,2.82461157]
[1754258049586,0.25404,114500.0,114490.0,2.82461157]
[1754258056198,0.27805,114500.0,114490.0,2.82461157]
[1754258057494,0.27805,114500.0,114490.0,2.71455945]
[1754258060897,0.27805,114500.0,114490.0,2.82461451]
[1754258064200,0.25404,114500.0,114490.0,2.82461451]
[1754258064695,4e-05,114510.0,114500.0,0.1869612]
[1754258064897,0.10004,114510.0,114500.0,1.7607043]
[1754258065600,0.12405,114510.0,114500.0,1.7607043]
[1754258066002,0.12805,114510.0,114500.0,1.7607043]
[1754258066502,0.12905,114510.0,114500.0,1.7607043]
[1754258067003,0.12905,114510.0,114500.0,0.5477612]
[1754258067302,0.12905,114510.0,114500.0,1.7607043]
[1754258069906,0.12905,114510.0,114500.0,1.83928727]
[1754258071106,0.12905,114510.0,114500.0,2.20008727]
[1754258076001,0.12905,114510.0,114500.0,2.1215043]
[1754258079810,0.12905,114510.0,114500.0,2.23155936]
[1754258080308,0.12905,114510.0,114500.0,2.49875936]
[1754258080711,0.12905,114510.0,114500.0,2.49881936]
[1754258083914,0.10504,114510.0,114500.0,2.49881936]
[1754258084102,0.12822,114510.0,114500.0,2.49881936]
[1754258085112,0.10504,114510.0,114500.0,2.49881936]
[1754258086012,0.12822,114510.0,114500.0,2.49881936]
[1754258092319,0.12822,114510.0,114500.0,2.3887643]
[1754258096827,0.12822,114510.0,114500.0,2.4986586]
[1754258097323,0.12822,114510.0,114500.0,2.3887643]
[1754258098022,0.12822,114510.0,114500.0,3.5964843]
[1754258099527,0.12822,114510.0,114500.0,3.70638705]
[1754258105831,0.12822,114510.0,114500.0,2.98478705]
[1754258106124,0.12822,114510.0,114500.0,3.70638705]
[1754258109129,0.10504,114510.0,114500.0,3.70638705]
[1754258109322,0.02322,114520.0,114510.0,0.1747459]
[1754258109631,0.21322,114520.0,114510.0,2.031619]
[1754258109831,0.21322,114520.0,114510.0,2.298819]
[1754258110435,0.21322,114520.0,114510.0,2.31629968]
[1754258110631,0.21622,114520.0,114510.0,2.31629968]
[1754258119735,0.21622,114520.0,114510.0,2.42620243]
[1754258121246,0.19304,114520.0,114510.0,2.42620243]
[1754258122147,0.19304,114520.0,114510.0,2.92620243]
[1754258122645,0.21285,114520.0,114510.0,2.92620243]
[1754258123345,0.21285,114520.0,114510.0,2.92820243]
[1754258124242,0.19004,114520.0,114510.0,2.92820243]
[1754258124447,0.19004,114520.0,114510.0,3.53467398]
[1754258124646,0.02285,114530.0,114520.0,0.1929307]
[1754258124843,0.28285,114530.0,114520.0,2.11238359]
[1754258125040,0.28285,114530.0,114520.0,2.0338738]
[1754258126054,0.26004,114530.0,114520.0,2.0338738]
[1754258126550,0.26004,114530.0,114520.0,2.5338738]
[1754258127747,0.28285,114530.0,114520.0,2.5338738]
[1754258131055,0.26004,114530.0,114520.0,2.5338738]
[1754258131850,0.28285,114530.0,114520.0,2.5338738]
[1754258132554,0.28285,114530.0,114520.0,2.64377655]
[1754258133856,0.28285,114530.0,114520.0,2.5338738]
[1754258135658,0.28285,114530.0,114520.0,2.64377655]
[1754258140763,0.28285,114530.0,114520.0,3.00509655]
[1754258140963,0.28285,114530.0,114520.0,2.8951938]
[1754258143665,0.26004,114530.0,114520.0,2.8951938]
[1754258145559,0.28506,114530.0,114520.0,2.8951938]
[1754258147672,0.28506,114530.0,114520.0,2.8971938]
[1754258149769,0.28506,114530.0,114520.0,2.8951938]
[1754258153476,0.28506,114530.0,114520.0,2.8971938]
[1754258154176,0.28506,114530.0,114520.0,2.8951938]
[1754258154476,0.28506,114530.0,114520.0,2.8971938]
[1754258154775,0.28506,114530.0,114520.0,3.05388726]
[1754258154965,0.28506,114530.0,114520.0,3.16381918]
[1754258155374,0.28506,114530.0,114520.0,2.8971938]
[1754258160173,0.28506,114530.0,114520.0,3.00713364]
[1754258160369,0.34574,114530.0,114520.0,3.26989364]
[1754258160568,0.40895,114530.0,114520.0,3.26028364]
[1754258160776,0.40895,114530.0,114520.0,3.25599364]
[1754258161074,0.40895,114530.0,114520.0,3.26106364]
[1754258161471,0.40895,114530.0,114520.0,3.26432364]
[1754258164080,0.28506,114530.0,114520.0,3.26432364]
[1754258164280,0.26004,114530.0,114520.0,3.26470364]
[1754258164475,0.28506,114530.0,114520.0,3.26470364]
[1754258164983,0.28506,114530.0,114520.0,3.1547638]
[1754258165282,0.28506,114530.0,114520.0,4.3622038]
[1754258166586,0.37054,114530.0,114520.0,4.3622038]
[1754258166787,0.40895,114530.0,114520.0,4.3622038]
[1754258170884,0.40895,114530.0,114520.0,4.51889726]
[1754258171591,0.38415,114530.0,114520.0,4.51889726]
[1754258171987,0.34574,114530.0,114520.0,4.51889726]
[1754258172386,0.38329,114530.0,114520.0,3.30595416]
[1754258172586,0.34574,114530.0,114520.0,4.51889726]
[1754258174897,0.40745,114530.0,114520.0,4.51889726]
[1754258175589,0.40745,114530.0,114520.0,4.3622038]
[1754258176397,0.38329,114530.0,114520.0,4.3622038]
[1754258176706,0.34574,114530.0,114520.0,4.3622038]
[1754258177596,0.34574,114530.0,114520.0,4.47218733]
[1754258179307,0.38329,114530.0,114520.0,4.47218733]
[1754258180109,0.38329,114530.0,114520.0,4.3622038]
[1754258180808,0.34574,114530.0,114520.0,4.3622038]
[1754258182611,0.28506,114530.0,114520.0,4.3622038]
[1754258184211,0.28506,114530.0,114520.0,4.3624838]
[1754258187218,0.28506,114530.0,114520.0,4.47244867]
[1754258188003,0.28506,114530.0,114520.0,4.3624838]
[1754258196623,0.28506,114530.0,114520.0,4.51917726]
[1754258197210,0.11998796,114530.0,114520.0,4.51917726]
[1754258200615,0.24000796,114530.0,114520.0,3.47550225]
[1754258200821,0.24000796,114530.0,114520.0,2.8690307]
[1754258201022,0.24000796,114530.0,114520.0,3.47550225]
[1754258201318,0.24000796,114530.0,114520.0,2.97550225]
[1754258202124,0.24000796,114530.0,114520.0,2.98000225]
[1754258202327,0.41462366,114530.0,114520.0,1.77264255]
[1754258202527,0.41462366,114530.0,114520.0,1.76814255]
[1754258203429,0.41462366,114530.0,114520.0,1.87810962]
[1754258204332,0.41462366,114530.0,114520.0,1.77264255]
[1754258204525,0.41462366,114530.0,114520.0,1.77553255]
[1754258205731,0.41462366,114530.0,114520.0,1.169061]
[1754258205932,0.41462366,114530.0,114520.0,1.88549962]
[1754258208434,0.58925566,114530.0,114520.0,1.00819807]
[1754258208633,0.58925566,114530.0,114520.0,1.87814962]
[1754258208831,0.58925566,114530.0,114520.0,1.76818255]
[1754258209334,0.58925566,114530.0,114520.0,1.50470255]
[1754258209533,0.58925566,114530.0,114520.0,1.87810962]
[1754258209928,0.58925566,114530.0,114520.0,1.76814255]
[1754258215443,0.58929566,114530.0,114520.0,1.77264255]
[1754258215837,0.58929566,114530.0,114520.0,1.166171]
[1754258216034,0.58929566,114530.0,114520.0,1.77264255]
[1754258217342,0.58929566,114530.0,114520.0,1.77553255]
[1754258221743,0.41466366,114530.0,114520.0,1.77553255]
[1754258223434,0.41466366,114530.0,114520.0,1.169061]
[1754258223636,0.41466366,114530.0,114520.0,1.77553255]
[1754258224746,0.41466366,114530.0,114520.0,1.05393255]
[1754258224943,0.41466366,114530.0,114520.0,1.77553255]
[1754258230748,0.41466366,114530.0,114520.0,1.51209255]
[1754258231046,0.41466366,114530.0,114520.0,1.77545255]
[1754258239154,0.35295366,114530.0,114520.0,1.77545255]
[1754258241456,0.41513366,114530.0,114520.0,0.898231]
[1754258241657,0.41513366,114530.0,114520.0,1.78156255]
[1754258258066,0.41513366,114530.0,114520.0,1.05996255]
[1754258258266,0.41513366,114530.0,114520.0,1.78156255]
[1754258264464,0.41513366,114530.0,114520.0,1.89152962]
[1754258267662,0.41513366,114530.0,114520.0,1.78156255]
[1754258268072,0.41513366,114530.0,114520.0,1.175091]
[1754258268271,0.41513366,114530.0,114520.0,1.78156255]
[1754258269278,0.41513366,114530.0,114520.0,1.78132255]
[1754258270079,0.41513366,114530.0,114520.0,1.05972255]
[1754258270278,0.41513366,114530.0,114520.0,1.78132255]
[1754258270674,0.41513366,114530.0,114520.0,1.174851]
[1754258270874,0.41513366,114530.0,114520.0,1.78132255]
[1754258271173,0.41513366,114530.0,114520.0,1.174851]
[1754258271575,0.41513366,114530.0,114520.0,1.78132255]
[1754258271781,0.41513366,114530.0,114520.0,1.174851]
[1754258272079,0.41513366,114530.0,114520.0,1.78132255]
[1754258272465,0.41513366,114530.0,114520.0,1.174851]
[1754258272671,0.41513366,114530.0,114520.0,1.78132255]
[1754258273278,0.41513366,114530.0,114520.0,1.174851]
[1754258273479,0.41513366,114530.0,114520.0,1.78132255]
[1754258274777,0.41513366,114530.0,114520.0,1.174851]
[1754258274977,0.41513366,114530.0,114520.0,1.78132255]
[1754258275783,0.41513366,114530.0,114520.0,1.05972255]
[1754258275978,0.41513366,114530.0,114520.0,1.78132255]
[1754258277386,0.41513366,114530.0,114520.0,1.89128962]
[1754258279384,0.41513366,114530.0,114520.0,1.62788962]
[1754258279784,0.41513366,114530.0,114520.0,1.89136962]
[1754258282487,0.41513366,114530.0,114520.0,1.78140255]
[1754258290393,0.41513366,114530.0,114520.0,1.51792255]
[1754258290596,0.41513366,114530.0,114520.0,1.78156255]
[1754258292497,0.41513366,114530.0,114520.0,1.175091]
[1754258292793,0.41513366,114530.0,114520.0,1.78156255]
[1754258294796,0.35295366,114530.0,114520.0,1.78156255]
[1754258295000,0.37789366,114530.0,114520.0,1.78156255]
[1754258295190,0.41430366,114530.0,114520.0,1.78156255]
[1754258299098,0.41430366,114530.0,114520.0,1.89152962]
[1754258300005,0.41430366,114530.0,114520.0,1.28505807]
[1754258300204,0.41430366,114530.0,114520.0,1.89152962]
[1754258301306,0.41430366,114530.0,114520.0,1.16992962]
[1754258301506,0.41430366,114530.0,114520.0,1.89152962]
[1754258305005,0.41430366,114530.0,114520.0,1.02141807]
[1754258305213,1.01973521,114530.0,114520.0,1.27238807]
[1754258305412,0.41326366,114530.0,114520.0,1.76889255]
[1754258312914,0.41326366,114530.0,114520.0,1.162421]
[1754258313119,0.41326366,114530.0,114520.0,1.76889255]
[1754258318424,0.41326366,114530.0,114520.0,1.162421]
[1754258318624,0.41326366,114530.0,114520.0,1.76889255]
[1754258326036,0.41326366,114530.0,114520.0,1.04729255]
[1754258326242,0.41326366,114530.0,114520.0,1.76889255]
[1754258328532,0.29464366,114530.0,114520.0,1.50529255]
[1754258328729,0.95680521,114530.0,114520.0,1.76953255]
[1754258328936,0.99194521,114530.0,114520.0,1.76953255]
[1754258329141,1.01632521,114530.0,114520.0,0.7236]
[1754258329442,1.29204815,114530.0,114520.0,0.7236]
[1754258329641,1.31366315,114530.0,114520.0,0.7236]
[1754258330339,1.29204815,114530.0,114520.0,0.7236]
[1754258340742,1.11741615,114530.0,114520.0,0.7236]
[1754258341643,1.29204815,114530.0,114520.0,0.7236]
[1754258347949,0.6855766,114530.0,114520.0,0.7236]
[1754258348149,1.29204815,114530.0,114520.0,0.7236]
[1754258350652,1.11741615,114530.0,114520.0,0.7236]
[1754258351448,1.11741615,114530.0,114520.0,0.3628]
[1754258358757,1.11741615,114530.0,114520.0,0.002]
[1754258358954,1.11741615,114530.0,114520.0,0.3628]
[1754258359153,1.13902779,114530.0,114520.0,0.3628]
[1754258360856,1.13902779,114530.0,114520.0,0.002]
[1754258361052,1.13902779,114530.0,114520.0,0.3628]
[1754258361550,1.13902779,114530.0,114520.0,0.002]
[1754258362162,1.11741615,114530.0,114520.0,0.002]
[1754258362360,1.13902778,114530.0,114520.0,0.002]
[1754258362563,1.13902778,114530.0,114520.0,0.3628]
[1754258376984,1.13902778,114530.0,114520.0,0.002]
[1754258377184,1.13902778,114530.0,114520.0,0.3628]
[1754258380384,1.13902778,114530.0,114520.0,0.002]
[1754258380586,1.13902778,114530.0,114520.0,0.3628]
[1754258390697,1.13902778,114530.0,114520.0,0.002]
[1754258390898,1.13902778,114530.0,114520.0,0.3628]
[1754258391902,1.13902778,114530.0,114520.0,0.002]
[1754258392200,1.13902778,114530.0,114520.0,0.3628]
[1754258393000,1.13902778,114530.0,114520.0,0.002]
[1754258400405,0.227396,114510.0,114500.0,0.3608]
[1754258400603,0.434646,114510.0,114500.0,0.3608]
[1754258400802,0.4346428,114510.0,114500.0,1.31659354]
[1754258401002,0.4346428,114510.0,114500.0,1.92306509]
[1754258401209,0.26,114510.0,114500.0,1.92306509]
[1754258401412,0.26,114510.0,114500.0,1.31659354]